fUSD/lending_fUSD_20250214
["ID","MTS","AMOUNT","RATE_DAILY","PERIOD"]
[353025685,1739491350736,150.0,0.00019995,120]
[353025689,1739491651000,150.0,0.00019988,120]
[353025700,1739491734816,18229.0326,8.836e-05,2]
[353025705,1739491831688,-3579.0925,8.973e-05,2]
[353025706,1739491831698,-200.0,9.085e-05,2]
[353025707,1739491831708,-196.4258278,9.197e-05,2]
[353025708,1739491831718,-200.0,9.445e-05,2]
[353025709,1739491831727,-150.0,9.87e-05,2]
[353025710,1739491831737,-200.0,9.87e-05,2]
[353025711,1739491831746,-411.04,0.00010137,2]
[353025712,1739491831756,-158.33,0.00010724,2]
[353025713,1739491831765,-150.0,0.00011335,2]
[353025714,1739491831775,-757.89,0.00011709,2]
[353025715,1739491831785,-550.0,0.00013,2]
[353025716,1739491831794,-954.68,0.00013361,2]
[353025717,1739491831804,-250.0,0.00013382,2]
[353025718,1739491831813,-200.0,0.00013421,2]
[353025719,1739491831822,-300.0,0.00013472,2]
[353025720,1739491831832,-1843.52883861,0.00013473,2]
[353025721,1739491831854,-296.06898983,0.00013473,2]
[353025722,1739491832112,-3368.90005892,0.00013473,2]
[353025723,1739491832123,-9377.46314013,0.00013473,2]
[353025724,1739491832165,-9014.03897251,0.00013473,2]
[353025725,1739491832176,-273.2,0.00013512,2]
[353025726,1739491832186,-245.55,0.00013522,2]
[353025727,1739491832196,-2000.0,0.0001356,2]
[353025728,1739491832205,-1000.0,0.00013644,2]
[353025729,1739491832215,-647.82,0.00013646,2]
[353025731,1739491832225,-760.88,0.00013669,2]
[353025732,1739491832235,-1820.59,0.00013674,2]
[353025733,1739491832246,-178.235992,0.00013698,2]
[353025734,1739491832256,-157.108712,0.00013698,2]
[353025735,1739491832265,-200.0,0.00013699,2]
[353025737,1739491832275,-178.235992,0.0001378,2]
[353025739,1739491832284,-157.108712,0.0001378,2]
[353025741,1739491832293,-150.0,0.00013973,2]
[353025742,1739491832302,-757.89,0.00013973,2]
[353025744,1739491832311,-1314.08,0.00014525,2]
[353025746,1739491832320,-1314.08,0.00014529,2]
[353025748,1739491832329,-1314.08,0.00014533,2]
[353025750,1739491832339,-1431.92775366,0.00014536,2]
[353025753,1739491832351,-11538.83486224,0.00014536,2]
[353025755,1739491832362,-1314.08,0.00014537,2]
[353025757,1739491832371,-1314.08,0.00014541,2]
[353025759,1739491832381,-1314.08,0.00014544,2]
[353025761,1739491832390,-1314.08,0.00014548,2]
[353025763,1739491832400,-1314.08,0.00014552,2]
[353025765,1739491832410,-1314.08,0.00014556,2]
[353025767,1739491832419,-1314.08,0.0001456,2]
[353025769,1739491832428,-1314.08,0.00014564,2]
[353025770,1739491832437,-1314.08,0.00014567,2]
[353025772,1739491832447,-1314.08,0.00014571,2]
[353025774,1739491832456,-1314.08,0.00014575,2]
[353025776,1739491832465,-1314.08,0.00014579,2]
[353025778,1739491832475,-1314.08,0.00014583,2]
[353025780,1739491832484,-1314.08,0.00014587,2]
[353025782,1739491832493,-1314.08,0.0001459,2]
[353025784,1739491832502,-1314.08,0.00014594,2]
[353025786,1739491832511,-1314.08,0.00014598,2]
[353025788,1739491832521,-150.0,0.0001465,2]
[353025790,1739491832530,-420.0,0.00014768,2]
[353025792,1739491832539,-1313.53761065,0.00014798,2]
[353025794,1739491832548,-677.10663725,0.00014952,2]
[353025796,1739491832558,-2245.29735395,0.00014978,2]
[353025798,1739491832567,-1314.21002546,0.00014987,2]
[353025800,1739491832576,-173.61656019,0.00014987,2]
[353025801,1739491832585,-159.89534736,0.00014987,2]
[353025802,1739491832595,-163.20199949,0.00014987,2]
[353025803,1739491832606,-314.08657707,0.00014987,2]
[353025804,1739491832615,-191.62,0.00015,2]
[353025805,1739491832626,-600.0,0.00015,2]
[353025806,1739491832636,-268.9,0.00015068,2]
[353025807,1739491832646,-619.16,0.00015077,2]
[353025808,1739491832655,-482.71511439,0.00015077,2]
[353025809,1739491832665,-510.23,0.00015077,2]
[353025810,1739491832674,-500.0,0.00015077,2]
[353025811,1739491832684,-500.0,0.00015077,2]
[353025812,1739491832694,-500.0,0.00015077,2]
[353025813,1739491832703,-500.0,0.00015077,2]
[353025815,1739491832713,-500.0,0.00015077,2]
[353025816,1739491832722,-519.13,0.00015077,2]
[353025818,1739491832731,-500.0,0.00015077,2]
[353025820,1739491832740,-500.0,0.00015077,2]
[353025822,1739491832749,-509.92,0.00015077,2]
[353025824,1739491832759,-500.0,0.00015077,2]
[353025826,1739491832768,-500.0,0.00015077,2]
[353025828,1739491832777,-500.0,0.00015077,2]
[353025830,1739491832787,-289.7406875,0.00015077,2]
[353025832,1739491832796,-94825.39115737,0.00015078,3]
[353026030,1739491837630,-500.0,0.00015077,2]
[353026031,1739491837641,-3356.73808,0.00015077,3]
[353026032,1739491837683,-638.12369998,0.00015077,3]
[353026033,1739491837698,-525.83325492,0.00015077,3]
[353026034,1739491837737,-611.29249079,0.00015077,3]
[353026035,1739491837748,-811.899985,0.00015077,3]
[353026036,1739491837791,-5970.0,0.00015077,3]
[353026037,1739491837803,-5571.0,0.00015077,3]
[353026222,1739491839829,-364.64177189,0.00015077,3]
[353026225,1739491839841,-3317.77987155,0.00015077,3]
[353026251,1739491840092,-2276.42920904,0.00015077,3]
[353026253,1739491840103,-350.0,0.00015077,3]
[353026259,1739491840146,-504.1,0.00015077,2]
[353026261,1739491840155,-8.5142,0.00015077,3]
[353026263,1739491840167,-356.72,0.00015077,3]
[353026265,1739491840177,-19226.40000001,0.00015077,3]
[353026274,1739491840251,-500.0,0.00015077,2]
[353026276,1739491840260,-1706.66364582,0.00015077,3]
[353026293,1739491840412,-292.78000934,0.00015077,3]
[353026529,1739491842760,-2529.0322421,0.00015077,3]
[353026536,1739491842816,-5281.92845925,0.00015077,3]
[353026542,1739491842868,-34624.135342,0.00015077,3]
[353026544,1739491842880,-2682.8,0.00015077,3]
[353026555,1739491842975,-739.855356,0.00015077,3]
[353026560,1739491843026,-3907.48170257,0.00015077,3]
[353026562,1739491843038,-14091.3576094,0.00015077,3]
[353026565,1739491843051,-1057.85154074,0.00015077,3]
[353026824,1739491845695,-500.0,0.00015077,2]
[353026834,1739491845804,-313.48911855,0.00015077,3]
[353026841,1739491845858,-4887.7,0.00015077,3]
[353026843,1739491845871,-70305.69646086,0.00015077,3]
[353026854,1739491909583,388.028,8.256e-05,2]
[353026855,1739492539576,2340.3501,8.256e-05,2]
[353026856,1739492675015,415.4624,8.836e-05,2]
[353026857,1739492729997,28065.3412,8.699e-05,2]
[353026858,1739492754584,517.3708,8.699e-05,2]
[353026862,1739492785873,157.9616,8.699e-05,2]
[353026863,1739492809567,484.1275,8.836e-05,2]
[353026864,1739492887402,25349.9747747,1.6e-05,2]
[353026880,1739493031877,-200.0,8.972e-05,2]
[353026881,1739493031889,-7235.8146,8.973e-05,2]
[353026882,1739493031899,-3222.6607,8.973e-05,2]
[353026883,1739493031909,-200.0,9.447e-05,2]
[353026884,1739493031919,-200.0,9.869e-05,2]
[353026885,1739493031930,-150.0,9.999e-05,2]
[353026886,1739493031939,-106109.68377068,0.0001,2]
[353026887,1739493031951,-1777.80580762,0.0001,2]
[353026888,1739493031963,-2882.2,0.0001,2]
[353026889,1739493031974,-7500.65049511,0.0001,2]
[353026890,1739493031986,-5378.856,0.0001,2]
[353026891,1739493031997,-3394.58541393,0.0001,2]
[353026892,1739493032043,-2443.34000001,0.0001,2]
[353026893,1739493032055,-14076.72046706,0.0001,2]
[353026894,1739493032066,-2504.34820463,0.0001,2]
[353026895,1739493032078,-6424.87106117,0.0001,2]
[353026896,1739493032205,-1984.73064104,0.0001,2]
[353026899,1739493032216,-317.91128112,0.0001,2]
[353026901,1739493032228,-891.54979015,0.0001,2]
[353027037,1739493037920,-2401.00581074,0.0001,2]
[353027038,1739493037976,-6035.38940369,0.0001,2]
[353027164,1739493039932,-28850.09999999,0.0001,2]
[353027191,1739493040200,-387.294,0.0001,2]
[353027497,1739493043126,-160399.04516593,0.0001,2]
[353027499,1739493043136,-163.3,0.00010137,2]
[353027501,1739493043149,-195.0,0.00010999,2]
[353027503,1739493043158,-1314.21002546,0.00011099,2]
[353027505,1739493043168,-1314.21002537,0.0001121,2]
[353027507,1739493043178,-250.0,0.00011855,2]
[353027509,1739493043187,-774.07,0.00012066,2]
[353027511,1739493043197,-726.94,0.00012247,2]
[353027513,1739493043206,-1314.21002537,0.00012383,2]
[353027515,1739493043216,-328.52,0.00012859,2]
[353027517,1739493043225,-328.52,0.00012863,2]
[353027519,1739493043235,-328.52,0.00012866,2]
[353027520,1739493043244,-328.52,0.00012869,2]
[353027522,1739493043253,-328.52,0.00012873,2]
[353027524,1739493043262,-328.52,0.00012876,2]
[353027526,1739493043271,-328.52,0.0001288,2]
[353027528,1739493043280,-328.52,0.00012883,2]
[353027530,1739493043289,-328.52,0.00012886,2]
[353027532,1739493043298,-328.52,0.0001289,2]
[353027534,1739493043308,-328.52,0.00012893,2]
[353027536,1739493043317,-328.52,0.00012897,2]
[353027538,1739493043327,-328.52,0.000129,2]
[353027540,1739493043337,-328.52,0.00012903,2]
[353027542,1739493043346,-328.52,0.00012907,2]
[353027544,1739493043355,-328.52,0.0001291,2]
[353027546,1739493043366,-289.7406875,0.00012999,2]
[353027548,1739493043376,-50787.43410687,0.00013,2]
[353027550,1739493043393,-550.0,0.00013,2]
[353027552,1739493043402,-477.34,0.00013476,2]
[353027554,1739493043412,-1314.21002537,0.00013557,2]
[353027556,1739493043422,-619.16,0.00013698,2]
[353027558,1739493043431,-482.71511439,0.00013698,2]
[353027560,1739493043441,-500.0,0.00013698,2]
[353027563,1739493043451,-500.0,0.00013698,2]
[353027564,1739493043462,-500.0,0.00013698,2]
[353027566,1739493043471,-500.0,0.00013698,2]
[353027568,1739493043481,-500.0,0.00013698,2]
[353027570,1739493043490,-500.0,0.00013698,2]
[353027572,1739493043499,-500.0,0.00013698,2]
[353027575,1739493043509,-500.0,0.00013698,2]
[353027577,1739493043519,-500.0,0.00013698,2]
[353027579,1739493043528,-500.0,0.00013698,2]
[353027581,1739493043537,-500.0,0.00013698,2]
[353027582,1739493043546,-500.0,0.00013698,2]
[353027585,1739493043556,-500.0,0.00013698,2]
[353027587,1739493043565,-500.0,0.00013698,2]
[353027588,1739493043574,-500.0,0.00013698,2]
[353027590,1739493043583,-500.0,0.00013698,2]
[353027592,1739493043592,-500.0,0.00013698,2]
[353027593,1739493043601,-500.0,0.00013698,2]
[353027594,1739493043611,-509.92,0.00013698,2]
[353027595,1739493043622,-500.0,0.00013698,2]
[353027596,1739493043631,-596.52,0.00013698,2]
[353027597,1739493043641,-1560.64,0.00013699,2]
[353027598,1739493043651,-250.0,0.00013703,2]
[353027599,1739493043659,-135114.52393352,0.0001378,3]
[353027600,1739493043671,-4554.81136809,0.0001378,3]
[353028477,1739493084843,5679.6641,8.836e-05,2]
[353028478,1739493886237,200.0,0.0002,120]
[353028479,1739493887927,200.0,0.0002,120]
[353028486,1739494232086,-204.0,8.851e-05,2]
[353028487,1739494232095,-83.680003,8.912e-05,2]
[353028488,1739494232108,-116.319997,8.912e-05,2]
[353028489,1739494232117,-218.58802,8.973e-05,2]
[353028490,1739494232248,-1621.48673275,8.973e-05,2]
[353028491,1739494232622,-3159.92524725,8.973e-05,2]
[353028492,1739494232633,-200.0,9.45e-05,2]
[353028493,1739494232642,-200.0,9.736e-05,2]
[353028494,1739494232651,-735.36,0.00010996,2]
[353028495,1739494232665,-195.92,0.0001243,2]
[353028496,1739494232674,-788.45,0.00012752,2]
[353028497,1739494232687,-788.45,0.00012756,2]
[353028498,1739494232700,-788.45,0.00012759,2]
[353028499,1739494232709,-788.45,0.00012762,2]
[353028500,1739494232717,-300.0,0.00012765,2]
[353028501,1739494232726,-788.45,0.00012766,2]
[353028502,1739494232737,-788.45,0.00012769,2]
[353028503,1739494232747,-788.45,0.00012772,2]
[353028504,1739494232755,-788.45,0.00012776,2]
[353028505,1739494232764,-788.45,0.00012779,2]
[353028506,1739494232772,-788.45,0.00012782,2]
[353028507,1739494232782,-788.45,0.00012786,2]
[353028508,1739494232790,-788.45,0.00012789,2]
[353028509,1739494232798,-788.45,0.00012792,2]
[353028510,1739494232806,-788.45,0.00012796,2]
[353028511,1739494232815,-788.45,0.00012799,2]
[353028512,1739494232826,-203.26583024,0.00012802,2]
[353028514,1739494232850,-585.18416976,0.00012802,2]
[353028516,1739494232859,-788.45,0.00012806,2]
[353028518,1739494232868,-788.45,0.00012809,2]
[353028520,1739494232877,-788.45,0.00012812,2]
[353028522,1739494232886,-788.45,0.00012816,2]
[353028523,1739494232895,-2006.70565851,0.00012852,2]
[353028676,1739494237956,-482.5873529,0.00012852,2]
[353028677,1739494238170,-955.13417132,0.00012852,2]
[353028863,1739494240085,-150.0,0.00012792,2]
[353028865,1739494240095,-2885.7003272,0.00012852,2]
[353028897,1739494240399,-5209.945048,0.00012852,2]
[353029257,1739494245994,-4851.84553024,0.00012852,2]
[353029258,1739494246047,-564.04422794,0.00012852,2]
[353029259,1739494246155,-4000.70912358,0.00012852,2]
[353029260,1739494246316,-2943.32856031,0.00012852,2]
[353029261,1739494246326,-150.0,0.00012877,2]
[353029262,1739494246336,-366.03599976,0.00012896,2]
[353029263,1739494246348,-268.07096201,0.00012896,2]
[353029264,1739494246361,-315.95114288,0.00012896,2]
[353029281,1739495432211,-165.36,9.662e-05,2]
[353029282,1739495432221,-200.0,9.899e-05,2]
[353029283,1739495432231,-414.65,0.00010137,2]
[353029284,1739495432241,-200.0,0.00010628,2]
[353029285,1739495432252,-200.0,0.00010775,2]
[353029286,1739495432262,-171.33,0.0001204,2]
[353029287,1739495432271,-383.63097004,0.00012041,2]
[353029288,1739495432281,-941.54421768,0.00012059,2]
[353029289,1739495432290,-188.5,0.00012081,2]
[353029290,1739495432300,-250.0,0.00012141,2]
[353029291,1739495432310,-200.0,0.00012166,2]
[353029292,1739495432319,-193.85,0.00012173,2]
[353029293,1739495432329,-1822.22433719,0.00012409,2]
[353029294,1739495432340,-177.77566281,0.00012409,2]
[353029295,1739495432351,-1000.0,0.00012411,2]
[353029296,1739495432360,-300.0,0.00012411,2]
[353029297,1739495432370,-94.01554064,0.00012412,2]
[353029298,1739495432381,-6891.26719767,0.00012412,2]
[353029299,1739495432393,-573.51186156,0.00012412,2]
[353029300,1739495432405,-1170.920517,0.00012412,2]
[353029301,1739495432416,-316.52362598,0.00012412,2]
[353029302,1739495432428,-330.55581015,0.00012412,2]
[353029303,1739495432458,-3900.0,0.00012412,2]
[353029304,1739495432521,-1050.11323801,0.00012412,2]
[353029305,1739495432691,-2055.25000005,0.00012412,2]
[353029310,1739495438196,-4050.0574283,0.00012412,2]
[353029311,1739495438426,-1246.61,0.00012412,2]
[353029314,1739495438437,-903.190002,0.00012412,2]
[353029485,1739495440216,-1317.98477864,0.00012412,2]
[353029487,1739495440227,-2000.0,0.00012442,2]
[353029489,1739495440236,-1059.0,0.00012694,2]
[353029491,1739495440245,-448.28,0.0001281,2]
[353029493,1739495440257,-418.06122468,0.00012815,2]
[353029495,1739495440266,-175.93,0.00012821,2]
[353029497,1739495440276,-283.64823,0.00012896,2]
[353029499,1739495440285,-328.52,0.00012914,2]
[353029501,1739495440294,-328.52,0.00012917,2]
[353029503,1739495440303,-328.52,0.0001292,2]
[353029505,1739495440312,-328.52,0.00012924,2]
[353029507,1739495440322,-550.0,0.00013,2]
[353029509,1739495440331,-150.0,0.00013044,2]
[353029511,1739495440340,-150.0,0.00013044,2]
[353029512,1739495440349,-150.0,0.00013044,2]
[353029515,1739495440358,-150.21347788,0.00013044,2]
[353029517,1739495440368,-150.0,0.00013044,2]
[353029518,1739495440377,-150.0,0.00013098,2]
[353029520,1739495440386,-150.0,0.00013147,2]
[353029522,1739495440395,-150.0,0.00013151,2]
[353029524,1739495440405,-150.0,0.00013205,2]
[353029526,1739495440414,-150.0,0.00013225,2]
[353029528,1739495440425,-150.0,0.00013251,2]
[353029531,1739495440434,-150.0,0.00013259,2]
[353029533,1739495440444,-735.36,0.0001326,2]
[353029535,1739495440454,-150.0,0.00013312,2]
[353029537,1739495440463,-150.0,0.00013354,2]
[353029539,1739495440474,-1059.0,0.00013362,2]
[353029541,1739495440484,-150.0,0.00013366,2]
[353029543,1739495440493,-788.52601524,0.000134,2]
[353029545,1739495440502,-314.08657707,0.000134,2]
[353029547,1739495440512,-163.20199949,0.000134,2]
[353029549,1739495440521,-159.89534736,0.000134,2]
[353029551,1739495440531,-150.0,0.00013406,2]
[353029553,1739495440540,-150.0,0.00013406,2]
[353029555,1739495440549,-150.0,0.0001342,2]
[353029557,1739495440558,-163.20199949,0.00013427,2]
[353029559,1739495440568,-150.0,0.00013458,2]
[353029561,1739495440577,-150.0,0.00013473,2]
[353029563,1739495440587,-17281.940999,0.000135,2]
[353029565,1739495440597,-150.0,0.00013527,2]
[353029567,1739495440607,-150.0,0.00013561,2]
[353029569,1739495440617,-150.0,0.00013581,2]
[353029571,1739495440626,-150.0,0.00013587,2]
[353029573,1739495440636,-188.5,0.00013591,2]
[353029575,1739495440646,-200.0,0.000136,4]
[353029576,1739495440656,-200.0,0.000136,3]
[353029578,1739495440665,-200.0,0.000136,3]
[353029580,1739495440675,-200.0,0.000136,6]
[353029582,1739495440685,-200.0,0.000136,6]
[353029584,1739495440695,-200.0,0.000136,5]
[353029586,1739495440704,-200.0,0.000136,5]
[353029588,1739495440713,-200.0,0.000136,4]
[353029591,1739495440723,-200.0,0.000136,4]
[353029593,1739495440732,-200.0,0.000136,7]
[353029594,1739495440741,-200.0,0.000136,7]
[353029596,1739495440751,-198.0,0.000136,7]
[353029598,1739495440760,-198.0,0.000136,6]
[353029600,1739495440770,-197.91,0.000136,5]
[353029603,1739495440779,-420.0,0.00013619,2]
[353029604,1739495440789,-150.0,0.00013634,2]
[353029607,1739495440799,-150.0,0.00013665,2]
[353029609,1739495440809,-150.0,0.00013688,2]
[353029611,1739495440819,-1214234.71808842,0.00013698,3]
[353029615,1739495440828,-500.0,0.00013698,2]
[353029617,1739495440838,-500.0,0.00013698,2]
[353029619,1739495440848,-500.0,0.00013698,2]
[353029623,1739495440857,-500.0,0.00013698,2]
[353029625,1739495440868,-500.0,0.00013698,2]
[353029627,1739495440878,-157.0,0.00013698,2]
[353029630,1739495440887,-500.0,0.00013698,2]
[353029631,1739495440896,-500.0,0.00013698,2]
[353029633,1739495440906,-500.0,0.00013698,2]
[353029635,1739495440915,-375.34,0.00013698,2]
[353029637,1739495440926,-597.2,0.00013698,2]
[353029639,1739495440936,-500.0,0.00013698,2]
[353029641,1739495440945,-545.42,0.00013698,2]
[353029643,1739495440954,-500.0,0.00013698,2]
[353029645,1739495440964,-500.0,0.00013698,2]
[353029647,1739495440975,-500.0,0.00013698,2]
[353029649,1739495440984,-500.0,0.00013698,2]
[353029651,1739495440993,-500.0,0.00013698,2]
[353029653,1739495441003,-610.8,0.00013698,2]
[353029655,1739495441012,-500.0,0.00013698,2]
[353029657,1739495441022,-694.58,0.00013698,2]
[353029659,1739495441031,-500.0,0.00013698,2]
[353029661,1739495441040,-500.0,0.00013698,2]
[353029663,1739495441049,-500.0,0.00013698,2]
[353029665,1739495441058,-500.0,0.00013698,2]
[353029667,1739495441069,-500.0,0.00013698,2]
[353029669,1739495441078,-500.0,0.00013698,2]
[353029671,1739495441087,-500.0,0.00013698,2]
[353029673,1739495441097,-500.0,0.00013698,2]
[353029676,1739495441106,-535.48,0.00013698,2]
[353029677,1739495441115,-500.0,0.00013698,2]
[353029680,1739495441125,-500.0,0.00013698,2]
[353029681,1739495441135,-500.0,0.00013698,2]
[353029683,1739495441144,-500.0,0.00013698,2]
[353029685,1739495441154,-500.0,0.00013698,2]
[353029687,1739495441163,-500.0,0.00013698,2]
[353029689,1739495441177,-500.0,0.00013698,2]
[353029691,1739495441187,-500.0,0.00013698,2]
[353029693,1739495441196,-509.5,0.00013698,2]
[353029695,1739495441206,-500.0,0.00013698,2]
[353029697,1739495441217,-500.0,0.00013698,2]
[353029699,1739495441227,-565.60518898,0.00013698,2]
[353029701,1739495441236,-500.0,0.00013698,2]
[353029703,1739495441246,-165.9,0.00013698,2]
[353029705,1739495441256,-500.0,0.00013698,2]
[353029707,1739495441265,-790.16,0.00013698,2]
[353029709,1739495441275,-500.0,0.00013698,2]
[353029711,1739495441285,-200.0,0.00013699,2]
[353029713,1739495441295,-302.40954035,0.00013701,2]
[353029715,1739495441306,-150.0,0.00013742,2]
[353029717,1739495441316,-150.0,0.00013768,2]
[353029719,1739495441326,-150.0,0.00013768,2]
[353029721,1739495441335,-150.0,0.00013768,2]
[353029723,1739495441345,-500.0,0.00013778,2]
[353029725,1739495441354,-500.0,0.00013778,2]
[353029727,1739495441365,-500.0,0.00013778,2]
[353029729,1739495441376,-500.0,0.00013778,2]
[353029731,1739495441385,-357.73,0.00013778,2]
[353029733,1739495441395,-585.35253559,0.00013778,2]
[353029735,1739495441404,-418.49,0.00013778,2]
[353029737,1739495441414,-500.0,0.00013778,2]
[353029739,1739495441423,-500.0,0.00013778,2]
[353029741,1739495441433,-500.0,0.00013778,2]
[353029743,1739495441442,-500.0,0.00013778,2]
[353029745,1739495441452,-500.0,0.00013778,2]
[353029747,1739495441463,-500.0,0.00013778,2]
[353029749,1739495441472,-500.0,0.00013778,2]
[353029751,1739495441482,-500.0,0.00013778,2]
[353029753,1739495441492,-500.0,0.00013778,2]
[353029755,1739495441501,-500.0,0.00013778,2]
[353029757,1739495441513,-500.0,0.00013778,2]
[353029759,1739495441522,-500.0,0.00013778,2]
[353029761,1739495441532,-500.0,0.00013778,2]
[353029763,1739495441542,-500.0,0.00013778,2]
[353029765,1739495441551,-500.0,0.00013778,2]
[353029767,1739495441559,-500.0,0.00013778,2]
[353029769,1739495441569,-500.0,0.00013778,2]
[353029771,1739495441578,-500.0,0.00013778,2]
[353029773,1739495441587,-506.62569565,0.00013778,2]
[353029775,1739495441597,-285.04692137,0.00013778,2]
[353029777,1739495441606,-500.0,0.00013778,2]
[353029779,1739495441615,-500.0,0.00013778,2]
[353029781,1739495441625,-500.0,0.00013778,2]
[353029783,1739495441634,-500.0,0.00013778,2]
[353029785,1739495441643,-500.0,0.00013778,2]
[353029787,1739495441653,-500.0,0.00013778,2]
[353029789,1739495441662,-500.0,0.00013778,2]
[353029791,1739495441671,-500.0,0.00013778,2]
[353029793,1739495441683,-500.0,0.00013778,2]
[353029795,1739495441693,-500.0,0.00013778,2]
[353029797,1739495441703,-500.0,0.00013778,2]
[353029799,1739495441713,-500.0,0.00013778,2]
[353029801,1739495441723,-500.0,0.00013778,2]
[353029803,1739495441733,-500.0,0.00013778,2]
[353029805,1739495441742,-500.0,0.00013778,2]
[353029807,1739495441751,-500.0,0.00013778,2]
[353029809,1739495441761,-500.0,0.00013778,2]
[353029811,1739495441771,-294.96,0.00013778,2]
[353029813,1739495441780,-400.9,0.00013778,2]
[353029815,1739495441790,-179.16,0.00013778,2]
[353029817,1739495441799,-500.0,0.00013778,2]
[353029819,1739495441809,-500.0,0.00013778,2]
[353029821,1739495441819,-590.11272425,0.00013778,2]
[353029823,1739495441828,-500.0,0.00013778,2]
[353029825,1739495441838,-500.0,0.00013778,2]
[353029827,1739495441847,-500.0,0.00013778,2]
[353029829,1739495441856,-500.0,0.00013778,2]
[353029831,1739495441865,-500.0,0.00013778,2]
[353029833,1739495441874,-500.0,0.00013778,2]
[353029835,1739495441883,-500.0,0.00013778,2]
[353029837,1739495441893,-500.0,0.00013778,2]
[353029838,1739495441902,-500.0,0.00013778,2]
[353029841,1739495441914,-500.0,0.00013778,2]
[353029843,1739495441923,-500.0,0.00013778,2]
[353029845,1739495441934,-637.9519891,0.00013778,2]
[353029847,1739495441944,-500.0,0.00013778,2]
[353029849,1739495441954,-500.0,0.00013778,2]
[353029851,1739495441964,-753.77,0.00013778,2]
[353029853,1739495441978,-500.0,0.00013778,2]
[353029855,1739495441987,-523.39,0.00013778,2]
[353029857,1739495441996,-500.0,0.00013778,2]
[353029859,1739495442011,-500.0,0.00013778,2]
[353029861,1739495442020,-500.0,0.00013778,2]
[353029863,1739495442029,-208.31669619,0.00013778,2]
[353029865,1739495442039,-500.0,0.00013778,2]
[353029867,1739495442048,-500.0,0.00013778,2]
[353029869,1739495442058,-500.0,0.00013778,2]
[353029871,1739495442067,-500.0,0.00013778,2]
[353029873,1739495442077,-500.0,0.00013778,2]
[353029875,1739495442087,-399.95104316,0.00013778,2]
[353029877,1739495442098,-500.0,0.00013778,2]
[353029879,1739495442108,-612.78,0.00013778,2]
[353029881,1739495442117,-500.0,0.00013778,2]
[353029883,1739495442127,-500.0,0.00013778,2]
[353029885,1739495442137,-500.0,0.00013778,2]
[353029887,1739495442146,-9365.22738506,0.0001378,2]
[353029889,1739495442155,-500.0,0.0001378,2]
[353029891,1739495442164,-500.0,0.0001378,2]
[353029893,1739495442175,-500.0,0.0001378,2]
[353029895,1739495442188,-500.0,0.0001378,2]
[353029897,1739495442197,-500.0,0.0001378,2]
[353029899,1739495442206,-500.0,0.0001378,2]
[353029900,1739495442215,-500.0,0.0001378,2]
[353029903,1739495442226,-500.0,0.0001378,2]
[353029905,1739495442236,-500.0,0.0001378,2]
[353029907,1739495442246,-199.13,0.0001378,2]
[353029909,1739495442258,-694.58,0.0001378,2]
[353029911,1739495442267,-500.0,0.0001378,2]
[353029913,1739495442277,-500.0,0.0001378,2]
[353029915,1739495442286,-500.0,0.0001378,2]
[353029917,1739495442295,-500.0,0.0001378,2]